[Event "Betsys MČR v online bleskovém šachu 2021"]
[Site "Chess.com"]
[Date "2021.04.17"]
[Round "7"]
[White "Michal5"]
[Black "DenisaD2008"]
[Result "1-0"]
[WhiteElo "1205"]
[BlackElo "963"]
[TimeControl "180+1"]
[EndTime "10:12:35 PDT"]
[Termination "Uživatel Michal5 zvítězil matem"]

1. e4 {[%clk 0:02:58.3]} 1... e5 {[%clk 0:03:00.2]} 2. Nf3 {[%clk 0:02:57.8]}
2... Nc6 {[%clk 0:03:00.6]} 3. Bc4 {[%clk 0:02:56.4]} 3... Bc5 {[%clk
0:03:00.8]} 4. d3 {[%clk 0:02:45.5]} 4... Nf6 {[%clk 0:03:00.4]} 5. Nc3 {[%clk
0:02:42.9]} 5... h6 {[%clk 0:02:58.8]} 6. O-O {[%clk 0:02:42]} 6... d6 {[%clk
0:02:57.9]} 7. h3 {[%clk 0:02:36.6]} 7... Be6 {[%clk 0:02:57.2]} 8. Bb3 {[%clk
0:02:34.5]} 8... Bxb3 {[%clk 0:02:55.7]} 9. axb3 {[%clk 0:02:35.4]} 9... O-O
{[%clk 0:02:55.6]} 10. Be3 {[%clk 0:02:35.9]} 10... Bxe3 {[%clk 0:02:54.7]} 11.
fxe3 {[%clk 0:02:35.8]} 11... d5 {[%clk 0:02:51.4]} 12. exd5 {[%clk 0:02:34.7]}
12... Nxd5 {[%clk 0:02:50.6]} 13. Nxd5 {[%clk 0:02:31.2]} 13... Qxd5 {[%clk
0:02:49.6]} 14. e4 {[%clk 0:02:32.1]} 14... Qd7 {[%clk 0:02:40.1]} 15. Qd2
{[%clk 0:02:27.2]} 15... Nd4 {[%clk 0:02:38.9]} 16. Nxe5 {[%clk 0:02:15.1]}
16... Qe6 {[%clk 0:02:31.7]} 17. Nf3 {[%clk 0:02:12]} 17... Nxf3+ {[%clk
0:02:28.8]} 18. Rxf3 {[%clk 0:02:12.9]} 18... f5 {[%clk 0:02:23]} 19. exf5
{[%clk 0:02:01.4]} 19... Rxf5 {[%clk 0:02:22.6]} 20. Rxf5 {[%clk 0:02:00.3]}
20... Qxf5 {[%clk 0:02:22.3]} 21. Rf1 {[%clk 0:02:01.2]} 21... Qg6 {[%clk
0:02:21]} 22. Qf4 {[%clk 0:01:58.2]} 22... Re8 {[%clk 0:02:14]} 23. Qxc7 {[%clk
0:01:52.5]} 23... b5 {[%clk 0:02:13.1]} 24. Qxa7 {[%clk 0:01:48.5]} 24... b4
{[%clk 0:02:09.1]} 25. Qc5 {[%clk 0:01:45.8]} 25... Rb8 {[%clk 0:01:55]} 26.
Qc4+ {[%clk 0:01:40.8]} 26... Kh8 {[%clk 0:01:49.4]} 27. Qc5 {[%clk 0:01:36.6]}
27... Kh7 {[%clk 0:01:41.3]} 28. Qf5 {[%clk 0:01:33]} 28... Qxf5 {[%clk
0:01:39.1]} 29. Rxf5 {[%clk 0:01:33.9]} 29... g6 {[%clk 0:01:38.8]} 30. Rf7+
{[%clk 0:01:30]} 30... Kg8 {[%clk 0:01:37.4]} 31. Rf6 {[%clk 0:01:28.6]} 31...
Kg7 {[%clk 0:01:36.2]} 32. Rf4 {[%clk 0:01:28.4]} 32... g5 {[%clk 0:01:30.4]}
33. Rf3 {[%clk 0:01:25.4]} 33... Rc8 {[%clk 0:01:28.2]} 34. Rf2 {[%clk
0:01:24.8]} 34... h5 {[%clk 0:01:26.6]} 35. d4 {[%clk 0:01:19.1]} 35... Rd8
{[%clk 0:01:22.6]} 36. Rd2 {[%clk 0:01:18.7]} 36... Rd5 {[%clk 0:01:20]} 37. c3
{[%clk 0:01:18.4]} 37... bxc3 {[%clk 0:01:18.9]} 38. bxc3 {[%clk 0:01:18.1]}
38... Kf6 {[%clk 0:01:15.9]} 39. Kf2 {[%clk 0:01:16.9]} 39... Ke6 {[%clk
0:01:14.9]} 40. Ke3 {[%clk 0:01:16.6]} 40... Kd6 {[%clk 0:01:14.4]} 41. Kd3
{[%clk 0:01:16.6]} 41... Kc6 {[%clk 0:01:13.9]} 42. c4 {[%clk 0:01:15.8]} 42...
Rd6 {[%clk 0:01:12.1]} 43. b4 {[%clk 0:01:15.5]} 43... Kd7 {[%clk 0:01:08.6]}
44. Ra2 {[%clk 0:01:14.5]} 44... Ke6 {[%clk 0:01:02]} 45. c5 {[%clk 0:01:14]}
45... Rd7 {[%clk 0:01:00.2]} 46. b5 {[%clk 0:01:11.9]} 46... Kd5 {[%clk
0:00:59.3]} 47. Rf2 {[%clk 0:01:08.2]} 47... Ke6 {[%clk 0:00:53.8]} 48. Re2+
{[%clk 0:01:06.9]} 48... Kf7 {[%clk 0:00:52.5]} 49. b6 {[%clk 0:01:05.8]} 49...
Kf6 {[%clk 0:00:49.5]} 50. Kc4 {[%clk 0:01:04.8]} 50... Kf5 {[%clk 0:00:48]} 51.
c6 {[%clk 0:00:56.4]} 51... Rd8 {[%clk 0:00:45]} 52. Kc5 {[%clk 0:00:53.2]}
52... Kf4 {[%clk 0:00:42.4]} 53. c7 {[%clk 0:00:50.4]} 53... Rc8 {[%clk
0:00:41.3]} 54. Kc6 {[%clk 0:00:50.5]} 54... Kg3 {[%clk 0:00:39.6]} 55. b7
{[%clk 0:00:48.2]} 55... Rf8 {[%clk 0:00:35.8]} 56. c8=Q {[%clk 0:00:46.2]}
56... Rxc8+ {[%clk 0:00:35.6]} 57. bxc8=Q {[%clk 0:00:47.1]} 57... h4 {[%clk
0:00:33.4]} 58. Qg4+ {[%clk 0:00:46.4]} 58... Kh2 {[%clk 0:00:30.8]} 59. Qxg5
{[%clk 0:00:44.7]} 59... Kg1 {[%clk 0:00:27.2]} 60. Qc1+ {[%clk 0:00:41.8]}
60... Kh2 {[%clk 0:00:26.5]} 61. g3+ {[%clk 0:00:42.2]} 61... Kxh3 {[%clk
0:00:24.6]} 62. Qh1+ {[%clk 0:00:40.3]} 62... Kg4 {[%clk 0:00:22.5]} 63. Re4+
{[%clk 0:00:40.3]} 63... Kxg3 {[%clk 0:00:21.6]} 64. Qxh4+ {[%clk 0:00:41.2]}
64... Kf3 {[%clk 0:00:19.9]} 65. Qg4+ {[%clk 0:00:40.3]} 65... Kf2 {[%clk
0:00:18.5]} 66. Re2+ {[%clk 0:00:41.2]} 66... Kf1 {[%clk 0:00:17.5]} 67. Qg2#
{[%clk 0:00:42.1]} 1-0

[Event "Betsys MČR v online bleskovém šachu 2021"]
[Site "Chess.com"]
[Date "2021.04.17"]
[Round "7"]
[White "viklan"]
[Black "JIDEMONI"]
[Result "0-1"]
[WhiteElo "1583"]
[BlackElo "1896"]
[TimeControl "180+1"]
[EndTime "10:12:36 PDT"]
[Termination "Uživatel JIDEMONI zvítězil po vzdání soupeře"]

1. d4 {[%clk 0:03:00.9]} 1... Nf6 {[%clk 0:02:53.2]} 2. c4 {[%clk 0:03:01.1]}
2... c5 {[%clk 0:02:52.1]} 3. Nf3 {[%clk 0:03:00.3]} 3... cxd4 {[%clk
0:02:48.7]} 4. Nxd4 {[%clk 0:02:59.6]} 4... Nc6 {[%clk 0:02:49.4]} 5. Nc2 {[%clk
0:02:59.4]} 5... g6 {[%clk 0:02:49.3]} 6. Nc3 {[%clk 0:02:58.2]} 6... Bg7 {[%clk
0:02:49.4]} 7. g3 {[%clk 0:02:58.4]} 7... O-O {[%clk 0:02:48.2]} 8. Bg2 {[%clk
0:02:58.8]} 8... d6 {[%clk 0:02:46.8]} 9. O-O {[%clk 0:02:57.9]} 9... a6 {[%clk
0:02:43.9]} 10. b3 {[%clk 0:02:57.7]} 10... Qc7 {[%clk 0:02:40.2]} 11. Bb2
{[%clk 0:02:54.9]} 11... Ng4 {[%clk 0:02:35.3]} 12. Qd2 {[%clk 0:02:40.2]} 12...
Bh6 {[%clk 0:02:27.3]} 13. e3 {[%clk 0:02:23.9]} 13... Bf5 {[%clk 0:02:18.5]}
14. Nd4 {[%clk 0:02:18.1]} 14... Nxd4 {[%clk 0:02:16.5]} 15. Qxd4 {[%clk
0:02:16]} 15... Bg7 {[%clk 0:02:16]} 16. Qd2 {[%clk 0:02:15.5]} 16... Nf6 {[%clk
0:02:00.8]} 17. Nd5 {[%clk 0:02:07.4]} 17... Nxd5 {[%clk 0:02:00.1]} 18. cxd5
{[%clk 0:02:01.2]} 18... Bxb2 {[%clk 0:01:54.1]} 19. Qxb2 {[%clk 0:02:00.2]}
19... Rac8 {[%clk 0:01:48.1]} 20. Rac1 {[%clk 0:01:59.3]} 20... Qa5 {[%clk
0:01:47.7]} 21. a3 {[%clk 0:01:51.7]} 21... h5 {[%clk 0:01:36]} 22. b4 {[%clk
0:01:50.5]} 22... Qd8 {[%clk 0:01:26.2]} 23. h4 {[%clk 0:01:50.2]} 23... Qd7
{[%clk 0:01:25.7]} 24. Rfd1 {[%clk 0:01:45.4]} 24... Bg4 {[%clk 0:01:23.9]} 25.
Rd2 {[%clk 0:01:42.9]} 25... Bh3 {[%clk 0:01:19.2]} 26. Bh1 {[%clk 0:01:33.5]}
26... Rxc1+ {[%clk 0:01:17.3]} 27. Qxc1 {[%clk 0:01:32.3]} 27... Rc8 {[%clk
0:01:17.8]} 28. Rc2 {[%clk 0:01:31.9]} 28... Rxc2 {[%clk 0:01:15.9]} 29. Qxc2
{[%clk 0:01:31.9]} 29... Qb5 {[%clk 0:01:07.5]} 30. Qc1 {[%clk 0:01:18.5]} 30...
Qd3 {[%clk 0:00:59.7]} 31. Kh2 {[%clk 0:01:15.9]} 31... Bf5 {[%clk 0:00:53.6]}
32. Bf3 {[%clk 0:01:12.8]} 32... Be4 {[%clk 0:00:50.2]} 33. Bxe4 {[%clk
0:01:06]} 33... Qxe4 {[%clk 0:00:49.9]} 34. Qc8+ {[%clk 0:01:03.5]} 34... Kg7
{[%clk 0:00:47.8]} 35. Qxb7 {[%clk 0:01:03.2]} 35... Qf3 {[%clk 0:00:43.6]} 36.
Kg1 {[%clk 0:01:02.7]} 36... Qd1+ {[%clk 0:00:34.9]} 37. Kg2 {[%clk 0:01:01.9]}
37... Qd3 {[%clk 0:00:32.9]} 38. Qxe7 {[%clk 0:00:51.9]} 38... Qxd5+ {[%clk
0:00:30.5]} 39. e4 {[%clk 0:00:51.7]} 39... Qd3 {[%clk 0:00:20.6]} 40. a4 {[%clk
0:00:42.9]} 40... Qd4 {[%clk 0:00:19.5]} 41. b5 {[%clk 0:00:40.7]} 41... Qxa4
{[%clk 0:00:17.7]} 42. b6 {[%clk 0:00:39.6]} 42... Qb5 {[%clk 0:00:14.6]} 43.
Qxd6 {[%clk 0:00:38.5]} 43... a5 {[%clk 0:00:14.2]} 44. Qd5 {[%clk 0:00:35]}
44... Qxb6 {[%clk 0:00:13.5]} 45. e5 {[%clk 0:00:30.4]} 45... a4 {[%clk
0:00:13.4]} 46. Qd6 {[%clk 0:00:26.6]} 46... Qxd6 {[%clk 0:00:11.8]} 47. exd6
{[%clk 0:00:26.5]} 47... Kf6 {[%clk 0:00:12.3]} 48. d7 {[%clk 0:00:25.4]} 48...
Ke7 {[%clk 0:00:12.3]} 49. Kf3 {[%clk 0:00:24.5]} 49... Kxd7 {[%clk 0:00:12.3]}
50. Ke4 {[%clk 0:00:24]} 50... Ke6 {[%clk 0:00:12.7]} 51. Kd4 {[%clk 0:00:22.6]}
51... Kf5 {[%clk 0:00:12.6]} 52. f3 {[%clk 0:00:22.7]} 52... f6 {[%clk
0:00:10.5]} 53. Kc4 {[%clk 0:00:22.2]} 53... g5 {[%clk 0:00:11]} 54. hxg5 {[%clk
0:00:21.9]} 54... fxg5 {[%clk 0:00:11]} 55. Kb4 {[%clk 0:00:22.1]} 55... h4
{[%clk 0:00:11.5]} 56. gxh4 {[%clk 0:00:20.2]} 56... gxh4 {[%clk 0:00:11.1]} 57.
Kxa4 {[%clk 0:00:21.1]} 57... Kf4 {[%clk 0:00:11.5]} 58. Kb4 {[%clk 0:00:22]}
58... h3 {[%clk 0:00:11.5]} 59. Kc3 {[%clk 0:00:22.9]} 59... h2 {[%clk 0:00:12]}
60. Kd2 {[%clk 0:00:23.7]} 60... h1=Q {[%clk 0:00:12.2]} 0-1

[Event "Betsys MČR v online bleskovém šachu 2021"]
[Site "Chess.com"]
[Date "2021.04.17"]
[Round "7"]
[White "Kamilotka"]
[Black "EliasD123"]
[Result "0-1"]
[WhiteElo "1610"]
[BlackElo "1319"]
[TimeControl "180+1"]
[EndTime "10:12:39 PDT"]
[Termination "Uživatel EliasD123 zvítězil na čas"]

1. e4 {[%clk 0:03:00.9]} 1... e5 {[%clk 0:02:59.1]} 2. d4 {[%clk 0:03:00.6]}
2... exd4 {[%clk 0:02:58.5]} 3. Bc4 {[%clk 0:02:59.8]} 3... Nc6 {[%clk
0:02:58.1]} 4. c3 {[%clk 0:02:58.8]} 4... Bc5 {[%clk 0:02:55.4]} 5. Bxf7+ {[%clk
0:02:48.4]} 5... Kxf7 {[%clk 0:02:53.3]} 6. Qh5+ {[%clk 0:02:48.1]} 6... g6
{[%clk 0:02:40.3]} 7. Qxc5 {[%clk 0:02:47.6]} 7... Nf6 {[%clk 0:02:40.2]} 8. Bg5
{[%clk 0:02:40]} 8... d6 {[%clk 0:02:25.3]} 9. Qa3 {[%clk 0:02:30.5]} 9... Be6
{[%clk 0:02:19.2]} 10. cxd4 {[%clk 0:02:25.8]} 10... Nxd4 {[%clk 0:02:16.1]} 11.
Nf3 {[%clk 0:02:19.2]} 11... Nc2+ {[%clk 0:02:13.7]} 12. Kf1 {[%clk 0:02:08.8]}
12... Nxa3 {[%clk 0:02:12.6]} 13. bxa3 {[%clk 0:02:08.7]} 13... h6 {[%clk
0:02:08.9]} 14. Bh4 {[%clk 0:02:07.8]} 14... g5 {[%clk 0:02:08.6]} 15. Bg3
{[%clk 0:02:07.2]} 15... Nxe4 {[%clk 0:02:08.3]} 16. Nbd2 {[%clk 0:02:01.9]}
16... Nxd2+ {[%clk 0:02:07.3]} 17. Nxd2 {[%clk 0:02:01.5]} 17... Re8 {[%clk
0:02:07.6]} 18. h4 {[%clk 0:01:54]} 18... g4 {[%clk 0:02:04.9]} 19. Rc1 {[%clk
0:01:38]} 19... Qd7 {[%clk 0:01:59.3]} 20. Kg1 {[%clk 0:01:31]} 20... Re7 {[%clk
0:01:43.6]} 21. Kh2 {[%clk 0:01:23.8]} 21... h5 {[%clk 0:01:42.3]} 22. Rhf1
{[%clk 0:01:16.7]} 22... Rae8 {[%clk 0:01:36.9]} 23. Ne4 {[%clk 0:01:11.5]}
23... d5 {[%clk 0:01:24.1]} 24. Ng5+ {[%clk 0:01:10.8]} 24... Kg6 {[%clk
0:01:22.6]} 25. f4 {[%clk 0:00:57]} 25... Rf8 {[%clk 0:01:05.2]} 26. Rf2 {[%clk
0:00:49.5]} 26... Bf5 {[%clk 0:00:53.6]} 27. Rd1 {[%clk 0:00:35.2]} 27... c6
{[%clk 0:00:47.5]} 28. Rd4 {[%clk 0:00:30.1]} 28... Qd6 {[%clk 0:00:41.5]} 29.
Rb4 {[%clk 0:00:27.3]} 29... b5 {[%clk 0:00:40.3]} 30. Rb3 {[%clk 0:00:20]}
30... Rfe8 {[%clk 0:00:38.2]} 31. Rc3 {[%clk 0:00:17.7]} 31... Re3 {[%clk
0:00:32.4]} 32. Rc1 {[%clk 0:00:16]} 32... Re2 {[%clk 0:00:24.6]} 33. Rff1
{[%clk 0:00:11.1]} 33... Rxa2 {[%clk 0:00:23.2]} 34. Rfd1 {[%clk 0:00:08.1]}
34... Ree2 {[%clk 0:00:18.5]} 35. Rg1 {[%clk 0:00:07.3]} 35... Qe7 {[%clk
0:00:16.1]} 36. Rxc6+ {[%clk 0:00:06.7]} 36... Kg7 {[%clk 0:00:13.7]} 37. Rcc1
{[%clk 0:00:06.3]} 37... a5 {[%clk 0:00:12.7]} 38. Rc6 {[%clk 0:00:05.9]} 38...
Be4 {[%clk 0:00:12.4]} 39. f5 {[%clk 0:00:04.9]} 39... Rxg2+ {[%clk 0:00:11]}
40. Rxg2 {[%clk 0:00:04.8]} 40... Rxg2+ {[%clk 0:00:11.1]} 41. Kh1 {[%clk
0:00:05.7]} 41... Rc2+ {[%clk 0:00:10.6]} 42. Kg1 {[%clk 0:00:05.9]} 42... Rxc6
{[%clk 0:00:11.1]} 43. Kf2 {[%clk 0:00:04.2]} 43... Rc2+ {[%clk 0:00:10.4]} 44.
Ke3 {[%clk 0:00:04.2]} 44... Qxa3+ {[%clk 0:00:10]} 45. Kf4 {[%clk 0:00:03.8]}
45... Qb4 {[%clk 0:00:08.4]} 46. Ne6+ {[%clk 0:00:03.7]} 46... Kf6 {[%clk
0:00:07.8]} 47. Nd8 {[%clk 0:00:02.4]} 47... Bd3+ {[%clk 0:00:06.8]} 0-1

[Event "Betsys MČR v online bleskovém šachu 2021"]
[Site "Chess.com"]
[Date "2021.04.17"]
[Round "7"]
[White "Milan_Jancek"]
[Black "Hroch-hroch"]
[Result "0-1"]
[WhiteElo "1820"]
[BlackElo "2251"]
[TimeControl "180+1"]
[EndTime "10:12:41 PDT"]
[Termination "Uživatel Hroch-hroch zvítězil na čas"]

1. c4 {[%clk 0:03:00.9]} 1... e5 {[%clk 0:02:57.8]} 2. Nc3 {[%clk 0:02:56.8]}
2... Bb4 {[%clk 0:02:57.3]} 3. d3 {[%clk 0:02:55.8]} 3... Nf6 {[%clk 0:02:52.7]}
4. g3 {[%clk 0:02:55.8]} 4... O-O {[%clk 0:02:48.7]} 5. Bg2 {[%clk 0:02:55.8]}
5... c6 {[%clk 0:02:48.1]} 6. Bd2 {[%clk 0:02:51.6]} 6... d5 {[%clk 0:02:46.6]}
7. a3 {[%clk 0:02:45.4]} 7... Bxc3 {[%clk 0:02:44]} 8. Bxc3 {[%clk 0:02:45.7]}
8... d4 {[%clk 0:02:43]} 9. Bd2 {[%clk 0:02:45.6]} 9... Re8 {[%clk 0:02:27.5]}
10. Bg5 {[%clk 0:02:28.3]} 10... Nbd7 {[%clk 0:02:24.7]} 11. Nf3 {[%clk
0:02:25.7]} 11... h6 {[%clk 0:02:24.3]} 12. Bxf6 {[%clk 0:02:24.7]} 12... Nxf6
{[%clk 0:02:23.6]} 13. O-O {[%clk 0:02:25.4]} 13... Bf5 {[%clk 0:02:18.9]} 14.
Nd2 {[%clk 0:02:21.8]} 14... e4 {[%clk 0:02:11.6]} 15. dxe4 {[%clk 0:02:15.9]}
15... Nxe4 {[%clk 0:02:10]} 16. Nxe4 {[%clk 0:02:15.3]} 16... Bxe4 {[%clk
0:02:09.4]} 17. Qd2 {[%clk 0:02:14.6]} 17... Bxg2 {[%clk 0:02:06.2]} 18. Kxg2
{[%clk 0:02:14.7]} 18... c5 {[%clk 0:02:05.9]} 19. Rad1 {[%clk 0:02:13.1]} 19...
Qe7 {[%clk 0:02:04]} 20. Rfe1 {[%clk 0:02:13.4]} 20... Rad8 {[%clk 0:01:56.3]}
21. e3 {[%clk 0:02:11.6]} 21... d3 {[%clk 0:01:33.7]} 22. Qc3 {[%clk 0:02:04.9]}
22... Rd6 {[%clk 0:01:26.3]} 23. Rd2 {[%clk 0:01:44.9]} 23... Red8 {[%clk
0:01:25.6]} 24. Qa5 {[%clk 0:01:43.3]} 24... b6 {[%clk 0:01:21.1]} 25. Qc3
{[%clk 0:01:42.8]} 25... h5 {[%clk 0:01:17.2]} 26. h4 {[%clk 0:01:40.3]} 26...
a5 {[%clk 0:01:12.5]} 27. f3 {[%clk 0:01:36.7]} 27... Qd7 {[%clk 0:00:59.5]} 28.
b3 {[%clk 0:01:24.6]} 28... Rg6 {[%clk 0:00:56.9]} 29. e4 {[%clk 0:01:22.1]}
29... Rd6 {[%clk 0:00:50.2]} 30. a4 {[%clk 0:01:12.2]} 30... Rd4 {[%clk
0:00:49.4]} 31. Re3 {[%clk 0:01:09.1]} 31... Qd6 {[%clk 0:00:48.9]} 32. Qc1
{[%clk 0:01:06.9]} 32... Qe5 {[%clk 0:00:46.3]} 33. Qb2 {[%clk 0:00:59.5]} 33...
R8d6 {[%clk 0:00:45.5]} 34. Qc3 {[%clk 0:00:59.2]} 34... Rg6 {[%clk 0:00:44.2]}
35. f4 {[%clk 0:00:36.7]} 35... Qxf4 {[%clk 0:00:42.2]} 36. Rf3 {[%clk
0:00:37.1]} 36... Qxe4 {[%clk 0:00:39.8]} 37. Rxd3 {[%clk 0:00:34.3]} 37... Qe2+
{[%clk 0:00:31.7]} 38. Kh3 {[%clk 0:00:32.7]} 38... Rxd3 {[%clk 0:00:19]} 39.
Qxd3 {[%clk 0:00:32.3]} 39... Qe6+ {[%clk 0:00:18.2]} 40. Kg2 {[%clk 0:00:31.5]}
40... Qg4 {[%clk 0:00:16.6]} 41. Qd8+ {[%clk 0:00:25.1]} 41... Kh7 {[%clk
0:00:15.3]} 42. Kh2 {[%clk 0:00:19.8]} 42... Re6 {[%clk 0:00:14.9]} 43. Qd3+
{[%clk 0:00:13.1]} 43... Rg6 {[%clk 0:00:13.7]} 44. Kg2 {[%clk 0:00:12.2]} 44...
f6 {[%clk 0:00:12.2]} 45. Kf2 {[%clk 0:00:11.3]} 45... Qh3 {[%clk 0:00:11.6]}
46. Qe4 {[%clk 0:00:03.7]} 46... Qh2+ {[%clk 0:00:11.2]} 47. Ke3 {[%clk
0:00:04.2]} 47... Qb2 {[%clk 0:00:10.7]} 48. Qd3 {[%clk 0:00:03.5]} 48... Qc1+
{[%clk 0:00:09.8]} 49. Ke2 {[%clk 0:00:03.4]} 49... Qg1 {[%clk 0:00:07.5]} 0-1

[Event "Betsys MČR v online bleskovém šachu 2021"]
[Site "Chess.com"]
[Date "2021.04.17"]
[Round "7"]
[White "Terilka"]
[Black "Mimochodem"]
[Result "0-1"]
[WhiteElo "1518"]
[BlackElo "1796"]
[TimeControl "180+1"]
[EndTime "10:12:41 PDT"]
[Termination "Uživatel Mimochodem zvítězil po vzdání soupeře"]

1. d4 {[%clk 0:03:00.9]} 1... d5 {[%clk 0:02:59.3]} 2. Nf3 {[%clk 0:02:59.5]}
2... c5 {[%clk 0:02:58.7]} 3. e3 {[%clk 0:02:59.3]} 3... e6 {[%clk 0:02:59]} 4.
c3 {[%clk 0:02:58.8]} 4... Nf6 {[%clk 0:02:59.3]} 5. Bd3 {[%clk 0:02:58.8]} 5...
b6 {[%clk 0:02:59]} 6. O-O {[%clk 0:02:57.9]} 6... Bb7 {[%clk 0:02:59.5]} 7.
Nbd2 {[%clk 0:02:57.4]} 7... Be7 {[%clk 0:02:59.7]} 8. Qe2 {[%clk 0:02:56]} 8...
O-O {[%clk 0:02:59.9]} 9. Re1 {[%clk 0:02:52.6]} 9... Nc6 {[%clk 0:03:00.3]} 10.
e4 {[%clk 0:02:52.3]} 10... dxe4 {[%clk 0:03:00.1]} 11. Nxe4 {[%clk 0:02:50.8]}
11... cxd4 {[%clk 0:02:57.9]} 12. cxd4 {[%clk 0:02:44.4]} 12... Nxd4 {[%clk
0:02:54.3]} 13. Nxd4 {[%clk 0:02:43.4]} 13... Qxd4 {[%clk 0:02:54.3]} 14. Nxf6+
{[%clk 0:02:42.8]} 14... Bxf6 {[%clk 0:02:52.1]} 15. Be3 {[%clk 0:02:34.4]}
15... Qd5 {[%clk 0:02:51.2]} 16. f3 {[%clk 0:02:28.6]} 16... Rfd8 {[%clk
0:02:43.4]} 17. Be4 {[%clk 0:02:25]} 17... Qd7 {[%clk 0:02:39.5]} 18. Red1
{[%clk 0:02:24.2]} 18... Qe7 {[%clk 0:02:39.2]} 19. Bxb7 {[%clk 0:02:10.5]}
19... Qxb7 {[%clk 0:02:39.5]} 20. Rac1 {[%clk 0:02:04.6]} 20... Rxd1+ {[%clk
0:02:37.7]} 21. Rxd1 {[%clk 0:02:05.5]} 21... h6 {[%clk 0:02:27.7]} 22. b3
{[%clk 0:02:00.8]} 22... Qc6 {[%clk 0:02:25.8]} 23. Bf4 {[%clk 0:01:49.1]} 23...
Qc5+ {[%clk 0:02:21.6]} 24. Kh1 {[%clk 0:01:44]} 24... Qb4 {[%clk 0:02:15]} 25.
Bd6 {[%clk 0:01:40.9]} 25... Qh4 {[%clk 0:02:09.4]} 26. Rc1 {[%clk 0:01:24.7]}
26... Rd8 {[%clk 0:02:03]} 27. Bg3 {[%clk 0:01:16.4]} 27... Qg5 {[%clk
0:01:59.1]} 28. Rc7 {[%clk 0:01:10.6]} 28... a5 {[%clk 0:01:50.6]} 29. Rc6
{[%clk 0:01:07.1]} 29... Bd4 {[%clk 0:01:42.8]} 30. Qc2 {[%clk 0:00:59.7]} 30...
Bc5 {[%clk 0:01:37]} 31. Bf2 {[%clk 0:00:40.2]} 31... Qd5 {[%clk 0:01:27.1]} 32.
Rxc5 {[%clk 0:00:26.5]} 32... bxc5 {[%clk 0:01:20]} 33. h3 {[%clk 0:00:24.3]}
33... Qd1+ {[%clk 0:01:19.5]} 34. Qxd1 {[%clk 0:00:24.6]} 34... Rxd1+ {[%clk
0:01:19.4]} 35. Kh2 {[%clk 0:00:25.5]} 35... Rc1 {[%clk 0:01:16.2]} 36. Kg3
{[%clk 0:00:24.3]} 36... c4 {[%clk 0:01:13.9]} 37. bxc4 {[%clk 0:00:22.6]} 37...
Rxc4 {[%clk 0:01:14.2]} 38. Be1 {[%clk 0:00:21.4]} 38... a4 {[%clk 0:01:13.1]}
39. a3 {[%clk 0:00:20]} 39... f6 {[%clk 0:01:04.9]} 40. Kf2 {[%clk 0:00:20]}
40... Kf7 {[%clk 0:01:04.5]} 41. Ke3 {[%clk 0:00:19.7]} 41... Rc2 {[%clk
0:01:02.5]} 42. g3 {[%clk 0:00:17.9]} 42... e5 {[%clk 0:01:02.8]} 43. Kd3 {[%clk
0:00:17.9]} 43... Rc1 {[%clk 0:01:00.3]} 44. Bd2 {[%clk 0:00:17.6]} 44... Ra1
{[%clk 0:00:56.4]} 45. Bb4 {[%clk 0:00:16.7]} 45... Rd1+ {[%clk 0:00:56.3]} 46.
Kc2 {[%clk 0:00:16.5]} 46... Rh1 {[%clk 0:00:54.6]} 47. h4 {[%clk 0:00:16]}
47... h5 {[%clk 0:00:54.3]} 48. Kd3 {[%clk 0:00:14.4]} 48... Rg1 {[%clk
0:00:53.2]} 49. Ke3 {[%clk 0:00:15]} 49... Rxg3 {[%clk 0:00:53.1]} 50. Kf2
{[%clk 0:00:13.5]} 50... Rg6 {[%clk 0:00:48]} 51. Ke3 {[%clk 0:00:11.6]} 51...
Rg1 {[%clk 0:00:45.4]} 52. Kf2 {[%clk 0:00:10.9]} 52... Rh1 {[%clk 0:00:44.7]}
53. Kg3 {[%clk 0:00:10.5]} 53... Ke6 {[%clk 0:00:43.8]} 54. f4 {[%clk 0:00:07]}
54... exf4+ {[%clk 0:00:41.2]} 55. Kxf4 {[%clk 0:00:07.9]} 55... Rxh4+ {[%clk
0:00:41.1]} 56. Ke3 {[%clk 0:00:08.8]} 56... Kd5 {[%clk 0:00:35.8]} 57. Kd3
{[%clk 0:00:07.8]} 57... Kc6 {[%clk 0:00:32]} 58. Kc3 {[%clk 0:00:07.2]} 58...
Kb5 {[%clk 0:00:31.4]} 59. Kc2 {[%clk 0:00:05]} 59... Rxb4 {[%clk 0:00:30.9]}
60. axb4 {[%clk 0:00:04.8]} 60... Kxb4 {[%clk 0:00:31.4]} 61. Kb2 {[%clk
0:00:05.4]} 61... h4 {[%clk 0:00:31.6]} 62. Ka2 {[%clk 0:00:05.5]} 62... h3
{[%clk 0:00:31.8]} 0-1